{"text_format":"3","workbook":"xlsx","n_sheets":6,"sheets":["Учебный план","Базисный","Сводные данные","Сводные данные (2)","Перечень каб. лаб.","Тит. лист"],"read":"whole","date_system":"1900"}

{"sheet":"Учебный план","index":0,"n_rows":89,"n_cols":23,"rows_kept":89,"merged":[[1,0,5,0],[1,1,5,1],[1,2,2,4],[1,5,5,5],[1,6,1,14],[1,15,1,22],[2,6,5,6],[2,7,2,14],[2,15,2,16],[2,17,2,18],[2,19,2,20],[2,21,2,22],[3,2,5,2],[3,3,5,3],[3,4,5,4],[3,7,3,11],[3,12,5,12],[3,13,5,13],[3,14,5,14],[4,7,5,7],[4,9,4,11],[62,2,63,2],[68,3,69,3],[75,2,76,2],[75,3,76,3],[80,0,80,1],[82,0,82,6],[82,7,88,7],[82,9,82,14],[83,0,83,6],[83,9,83,14],[84,0,84,6],[84,9,84,14],[85,0,85,6],[85,9,85,14],[86,0,86,6],[86,9,86,14],[87,0,87,6],[87,9,87,14],[88,0,88,6],[88,9,88,14]]}
["2. План учебного процесса"]
["Индекс","Наименование циклов, дисциплин, профессиональных модулей, МДК, практик","Формы промежуточной аттестации",null,null,"Объем образовательной нагрузки ","Учебная нагрузка обучающихся (час.)",{"$nulls":8},"Распределение учебной нагрузки  по курсам и семестрам (час. в семестр)"]
[{"$nulls":6},"Самостоятельная учебная работа","Во взаимодействии с преподавателем",{"$nulls":7},"I курс",null,"II курс",null,"III курс",null,"IV курс"]
[null,null,"Зачеты","Дифференцированные зачеты","Экзамены",null,null,"Нагрузка на дисциплины и МДК",{"$nulls":4},"По практике производственной и учебной","Консультации","Промежуточная аттестация","1    сем.                     ","2   сем.   ","3   сем.                                   ","4   сем.        ","5    сем. ","6    сем.                                                                                                                                                                                       ","7    сем. ","8    сем."]
[{"$nulls":7},"Всего учебных занятий",null,"по учебным дисциплинам и МДК",{"$nulls":5}," 17 нед."," 24 нед.","17 нед.","24 нед.","17 нед.","25 нед.","17 нед.","24 нед."]
[{"$nulls":8},"в т.ч. в форме прак. подг.","теоретического обучения","лаб. и практ. занятий","курсовых работ (проектов)",{"$nulls":3},"(17 нед. т/о+ПА)","(24 нед. т/о+ ПА)","(15 нед. т/о+2нед. УП)","(17 нед. т/о+2 нед. УП+5 нед. ПП+ПА)","(16 нед. т/о+1 нед.             УП+    ПА)","(17 нед. т/о+4 нед. УП+4 нед. ПП+ПА)","(15 нед. т/о+2 нед. УП+ПА)","(7нед. т/о+1 нед. УП+6нед. ПП+4 нед. ПДП+ПА+6 нед. ГИА)"]
[1,2,3,4,5,6,7,8,null,9,10,11,12,13,14,15,16,17,18,19,20,21,22]
["О.00","Общеобразовательные учебные дисциплины",0,7,6,1476,0,1404,26,980,424,null,null,36,36,612,864]
["ОУД.01","Русский язык ",null,null,2,90,0,78,null,66,12,null,null,6,6,34,56]
["ОУД.02","Литература",null,2,null,108,0,108,null,98,10,{"$nulls":4},60,48]
["ОУД.03","Иностранный язык",null,2,null,72,0,72,null,30,42,{"$nulls":4},54,18]
["ОУД.04","Математика",null,null,2,246,0,234,10,174,60,null,null,6,6,56,190]
["ОУД.05","История",null,2,null,134,0,134,null,112,22,{"$nulls":4},52,82]
["ОУД.06","Физическая культура",1,2,null,76,0,76,null,4,72,{"$nulls":4},30,46]
["ОУД.07","Основы безопасности жизнедеятельности",null,2,null,70,0,70,null,20,50,{"$nulls":4},34,36]
["ОУД.08","География",null,2,null,72,0,72,null,46,26,{"$nulls":4},54,18]
["ОУД.09","Информатика",null,null,2,84,0,72,10,50,22,null,null,6,6,44,40]
["ОУД.10","Физика",null,null,2,146,0,134,6,88,46,null,null,6,6,52,94]
["ОУД.11","Обществознание",null,2,null,70,0,70,null,58,12,{"$nulls":4},36,34]
["ОУД.12","Химия",null,null,2,84,0,72,null,52,20,null,null,6,6,44,40]
["ОУД.13","Биология",null,null,2,146,0,134,null,120,14,null,null,6,6,28,118]
["ОУД.14","Родной язык",null,2,null,78,0,78,null,62,16,{"$nulls":4},34,44]
[]
[]
[]
[]
[null,"Индивидуальный проект"]
["СГД. 00","Социально-гуманитарные дисциплины",0,4,0,{"$f":"SUM(F29:F33)","v":510},{"$f":"SUM(G29:G33)","v":22},{"$f":"SUM(H29:H33)","v":488},0,{"$f":"SUM(J29:J33)","v":74},414,0,0,0,0,0,0,142,36,40,64,132,96]
["СГД.01","История России",null,3,null,46,10,36,null,30,6,{"$nulls":6},46]
["СГД.02","Иностранный язык в профессиональной деятельности",null,8,null,180,null,180,null,null,180,{"$nulls":6},30,22,20,32,62,14]
["СГД.03","Безопасность жизнедеятельности",null,8,null,68,12,56,null,16,40,{"$nulls":11},68]
["СГД.04","Физическая культура","3-7",8,null,180,null,180,null,null,180,{"$nulls":6},30,14,20,32,70,14]
["СГДВ.01","Русский язык и культура речи",null,3,null,36,null,{"$f":"J33+K33","v":36},null,28,8,{"$nulls":6},36]
["ОП.00","Общепрофессиональные дисциплины",0,12,4,1032,{"$f":"SUM(G35:G50)","v":94},898,112,{"$f":"SUM(J35:J50)","v":480},418,0,0,16,24,0,0,276,274,72,36,338,36]
["ОП.01","Математические методы решения прикладных профессиональных задач",null,4,null,72,null,72,null,36,36,{"$nulls":6},36,36]
["ОП.02","Экологические основы природопользования",null,7,null,48,12,36,null,18,18,{"$nulls":10},48]
["ОП.03","Инженерная графика",null,4,null,132,14,118,40,12,106,{"$nulls":6},72,60]
["ОП.04","Техническая механика",null,null,7,128,12,106,30,58,48,null,null,4,6,{"$nulls":6},128]
["ОП.05","Материаловедение",null,null,4,100,12,78,10,60,18,null,null,4,6,null,null,48,52]
["ОП.06","Электротехника и электроника",null,null,4,98,12,76,null,48,28,null,null,4,6,null,null,44,54]
["ОП.07","Основы гидравлики и теплотехники",null,5,null,36,6,30,4,22,8,{"$nulls":8},36]
["ОП.08","Основы агрономии",null,4,null,36,4,32,2,24,8,{"$nulls":7},36]
["ОП.09","Основы зоотехнии",null,7,null,36,10,26,2,20,6,{"$nulls":10},36]
["ОП.10","Информационные технологии в профессиональной деятельности",null,5,null,36,null,36,20,12,24,{"$nulls":8},36]
["ОП.11","Основы взаимозаменяемости и технические измерения",null,7,null,54,null,54,null,40,14,{"$nulls":10},54]
["ОП.12","Основы экономики, менеджмента и маркетинга",null,null,8,72,12,50,null,34,16,null,null,4,6,{"$nulls":6},36,36]
["ОП.13","Правовые основы профессиональной деятельности и охрана труда",null,4,null,72,null,72,null,48,24,{"$nulls":6},36,36]
["ОП.В. 01","Топливо и смазочные материалы",null,6,null,36,null,36,4,18,18,{"$nulls":9},36]
["ОП.В.02","Компьютерная графика",null,7,null,36,null,36,null,null,36,{"$nulls":10},36]
["ОП.В.03","Основы финансовой грамотности",null,3,null,40,null,40,null,30,10,{"$nulls":6},40]
["П.00","Профессиональный модули",0,14,{"$f":"E52+E58+E66+E72","v":7},"2706",{"$f":"G52+G58+G66+G72","v":78},{"$f":"H52+H58+H66+H72","v":1410},154,820,{"$f":"K52+K58+K66+K72","v":550},40,972,42,60,0,0,194,554,500,800,142,372]
["ПМ.01","Эксплуатация сельскохозяйственной техники и оборудования",0,3,2,594,18,222,30,136,66,{"$f":"SUM(L53:L56)","v":20},{"$f":"SUM(M53:M56)","v":324},12,18,{"$f":"SUM(P53:P56)","v":0},{"$f":"SUM(Q53:Q56)","v":0},{"$f":"SUM(R53:R56)","v":194},400,{"$f":"SUM(T53:T56)","v":0},{"$f":"SUM(U53:U56)","v":0},{"$f":"SUM(V53:V56)","v":0},{"$f":"SUM(W53:W56)","v":0}]
["МДК. 01.01","Назначение и общее устройство тракторов, автомобилей и сельскохозяйственных машин",null,null,4,178,12,154,20,100,54,null,null,6,6,null,null,86,92]
["МДК. 01.02","Комплектование машинно-тракторного агрегата для выполнения сельскохозяйственных работ",null,4,null,74,6,68,10,36,12,20,{"$nulls":5},36,38]
["УП.01","Учебная практика",null,4,null,144,{"$nulls":6},144,{"$nulls":4},72,72]
["ПП.01","Производственная практика",null,4,null,180,{"$nulls":6},180,{"$nulls":5},180]
["ПМ.01.Э","Экзамен помодулю",null,null,4,18,{"$nulls":7},6,12,{"$nulls":3},18]
["ПМ.02","Ремонт сельскохозяйственной техники и оборудования",0,4,3,"936",{"$f":"SUM(G59:G64)","v":24},474,38,{"$f":"SUM(J59:J64)","v":280},174,20,396,18,24,0,0,0,56,{"$f":"SUM(T59:T64)","v":150},{"$f":"SUM(U59:U64)","v":216},{"$f":"SUM(V59:V64)","v":142},372]
["МДК. 02.01","Система технического обслуживания и ремонта сельскохозяйственных машин и механизмов",null,null,5,"148",null,"136","10",58,78,null,null,6,6,{"$nulls":3},"56",92]
["МДК. 02.02","Технологические процессы ремонтного производства",null,null,6,"148",24,"112","20",60,32,20,null,6,6,{"$nulls":4},58,90]
["МДК. 02.03","Технология механизированных работ в растениеводстве",null,8,null,"142",null,"142","4",90,52,{"$nulls":9},54,62,26]
["МДК. 02.04","Технология механизированных работ в животноводстве",null,8,null,"84",null,"84","4",72,12,{"$nulls":10},8,76]
["УП.02","Учебная практика",null,8,null,"180",{"$nulls":6},180,{"$nulls":7},72,72,36]
["ПП.02","Производственная практика",null,8,null,216,{"$nulls":6},216,{"$nulls":9},216]
["ПМ.02.Э","Экзамен по модулю",null,null,8,18,{"$nulls":7},6,12,{"$nulls":7},18]
["ПМ.03","Выполнение работ по одной или нескольким профессиям рабочих, должностям служащих: 19205 Тракторист-машинист сельскохозяйственного производства",0,3,1,430,{"$f":"SUM(G67:G70)","v":0},{"$f":"SUM(H67:H70)","v":274},40,{"$f":"SUM(J67:J70)","v":116},158,0,144,6,6,0,0,0,98,116,216,0,0]
["МДК. 03.01","Теоретическая подготовка трактористов-машинистов сельскохозяйственного производства В,С,D,Е,F",null,6,null,148,null,148,30,50,98,{"$nulls":7},58,44,46]
["МДК. 03.02","Слесарные работы и технические измерения",null,6,null,126,null,126,10,66,60,{"$nulls":7},40,36,50]
["УП.03","Учебная практика",null,6,null,72,{"$nulls":6},72,{"$nulls":6},36,36]
["ПП.03","Производственная практика",{"$nulls":3},72,{"$nulls":6},72,{"$nulls":7},72]
["ПМ.03.ЭК","Квалификационный экзамен",null,null,6,12,{"$nulls":7},6,6,{"$nulls":5},12]
["ПМ.04","Выполнение работ по одной или нескольким профессиям рабочих, должностям служащих: 11442 Водитель автомобиля",0,4,1,602,{"$f":"SUM(G73:G77)","v":36},440,46,{"$f":"SUM(J73:J77)","v":288},152,0,108,6,12,0,0,0,0,234,368,0,0]
["МДК. 04.01","Теоретическая подготовка водителей автомобилей категории В и С",null,6,null,"206",12,"194","32",128,66,{"$nulls":8},100,106]
["МДК. 04.02","Организация и выполнение пассажирских и грузовых перевозок на автомобильном транспорте",null,6,null,"90",12,"78","4",60,18,{"$nulls":8},54,36]
["МДК. 04.03","Техническое обслуживание и ремонт автомобиля",null,6,null,"180",12,"168","10",100,68,{"$nulls":8},80,100]
["УП.04","Учебная практика",null,6,null,"36",{"$nulls":6},36,{"$nulls":7},36]
["ПП.04","Производственная практика",{"$nulls":3},"72",{"$nulls":6},72,{"$nulls":7},72]
["ПМ.04.ЭК","Квалификационный экзамен",null,null,6,"18",{"$nulls":7},6,12,{"$nulls":5},18]
["ПДП","Преддипломная практика",{"$nulls":3},144,{"$nulls":16},"4нед."]
["ГИА","Государственная итоговая аттестация",{"$nulls":3},216,{"$nulls":16},"6нед."]
["Итого",null,0,37,17,"5940",194,4200,"292",2354,1806,40,972,94,120,612,864,612,864,612,900,612,648]
[]
[{"$nulls":7},"Всего",null,"часов дисциплин и МДК ",{"$nulls":5},612,864,540,612,576,612,540,252]
["Государственная (итоговая) атестация",{"$nulls":8},"часов учебной практики",{"$nulls":7},72,{"$f":"S55","v":72},36,144,72,36]
["1.1. Дипломный проект (работа)",{"$nulls":8},"часов производств. практики",{"$nulls":8},{"$f":"S56","v":180},null,144,null,216]
["Выполнение дипломного проекта (работы) - (всего 4 нед.)",{"$nulls":8},"часов преддиплом. практики",{"$nulls":12},144]
["Защита дипломного проекта (работы) - (всего 2 нед.)",{"$nulls":8},"кол.-во экзаменов",{"$nulls":6},6,null,4,1,3,1,2]
["1.2. Выполнение демонстрационного экзамена",{"$nulls":8},"кол.-во дифф.  зачетов",{"$nulls":6},7,3,7,2,8,4,6]
[{"$nulls":9},"кол.-во зачетов"]

{"sheet":"Базисный","index":1,"n_rows":75,"n_cols":9,"rows_kept":75,"merged":[[0,0,0,8],[1,0,2,0],[1,1,2,1],[1,2,2,2],[1,3,1,4],[1,5,1,6],[1,7,1,8]]}
["Базисный учебный план образовательной программы СПО 35.02.16 Эксплуатация и ремонт сельскохозяйственной техники и оборудования"]
["Индекс","Наименование циклов, дисциплин, профессиональных модулей, МДК, практик","Объем образовательной нагрузки, час","Обязательная часть ОП, час",null,"Вариативная часть ОП, час",null,"Общеобразовательная подготовка, час"]
[{"$nulls":3},"Учебные занятия","Консультации + экзамены","Учебные занятия","Консультации + экзамены","Учебные занятия","Консультации + экзамены"]
[1,2,3,4,null,5,null,6]
["ОУД.00","Общеобразовательные учебные дисциплины",1476,0,0,0,0,1404,"48+24"]
[null,"Общие дисциплины",1016,{"$nulls":4},976]
["ОУД.01","Русский язык ",90,{"$nulls":4},78,"6+6"]
["ОУД.02","Литература",148,{"$nulls":4},144,"4+0"]
["ОУД.03","Иностранный язык",158,{"$nulls":4},154,"4+0"]
["ОУД.04","Математика",246,{"$nulls":4},234,"6+6"]
["ОУД.05","История",138,{"$nulls":4},134,"4+0"]
["ОУД.06","Физическая культура",126,{"$nulls":4},126,"0+0"]
["ОУД.07","Основы безопасности жизнедеятельности",72,{"$nulls":4},70,"2+0"]
["ОУД.08","Астрономия",38,{"$nulls":4},36,"2+0"]
[null,"По выбору из обязательных предметных областей",460,{"$nulls":4},428]
["ОУД.09","Информатика ",120,{"$nulls":4},108,"6+6"]
["ОУД.10","Физика",146,{"$nulls":4},134,"6+6"]
["ОУД.11","Естествознание",112,{"$nulls":4},108,"4+0"]
["ОУД.11.01","Естествознание/Химия",74,{"$nulls":4},72,"2+0"]
["ОУД.11.02","Естествознание/Биология",38,{"$nulls":4},36,"2+0"]
["ОУД.12","Родной язык / Родная литература",82,{"$nulls":4},78,"4+0"]
["ОГСЭ. 00","Общий гуманитарный и социально-экономический цикл",{"$f":"SUM(C23:C28)","v":540},{"$f":"SUM(D23:D28)","v":468},0,72,0,0,0]
["ОГСЭ.01","Основы философии",46,46]
["ОГСЭ.02","История",46,46]
["ОГСЭ.03","Иностранный язык в профессиональной деятельности",172,172]
["ОГСЭ.04","Физическая культура",160,160]
["ОГСЭ.05","Психология общения",44,44]
["ОГСЭ.06","Татарский язык в профессиональной деятельности",72,null,null,72]
["ЕН.00","Математический и общий естественнонаучный цикл",144,144,0,0,0,0,0]
["ЕН.01","Математика",96,96]
["ЕН.02","Экологические основы природопользования",48,48]
["ОП.00","Общепрофессиональный цикл",{"$f":"SUM(C33:C48)","v":866},{"$f":"SUM(D33:D48)","v":582},30,234,20,0,0]
["ОП.01","Инженерная графика",64,64]
["ОП.02","Техническая механика",112,102,"4+6"]
["ОП.03","Материаловедение",50,40,"4+6"]
["ОП.04","Электротехника и электроника",50,50]
["ОП.05","Основы гидравлики и теплотехники",42,42]
["ОП.06","Основы агрономии",52,40,null,12]
["ОП.07","Основы зоотехнии",42,30,null,12]
["ОП.08","Информационные технологии в профессиональной деятельности",56,28,null,28]
["ОП.09","Метрология, стандартизация и подтверждение качества",40,40]
["ОП.10","Основы экономики, менеджмента и маркетинга",40,40]
["ОП.11","Правовые основы профессиональной деятельности",42,24,null,18]
["ОП.12","Охрана труда",56,14,"4+6",32]
["ОП.13","Безопасность жизнедеятельности",68,68]
["ОП.14","Топливо и смазочные материалы",52,null,null,42,"4+6"]
["ОП.15","Компьютерная инженерная графика",48,null,null,48]
["ОП.16","Экономика и организация производства",52,null,null,42,"4+6"]
["П.00","Профессиональный цикл",{"$f":"C50+C56+C61+C67+C73","v":2698},1626,102,970,0,0,0]
["ПМ.01","Подготовка машин, механизмов, установок, приспособлений к работе, комплектование сборочных единиц",{"$f":"SUM(C51:C55)","v":1016},{"$f":"SUM(D51:D55)","v":386},30,{"$f":"SUM(F51:F55)","v":600},{"$f":"SUM(G51:G55)","v":0},{"$f":"SUM(H51:H55)","v":0},{"$f":"SUM(I51:I55)","v":0}]
["МДК. 01.01","Назначение и общее устройство тракторов, автомобилей и сельскохозяйственных машин",528,96,"6+6",420]
["МДК. 01.02","Подготовка  тракторов и сельскохозяйственных машин и механизмов к работе",110,110]
["УП.01","Учебная практика",216,108,null,108]
["ПП.01","Производственная практика",144,72,null,72]
["ПМ.01.Э","Экзамен по модулю",18,null,"6+12"]
["ПМ.02","Эксплуатация сельскохозяйственной техники",{"$f":"SUM(C57:C60)","v":512},{"$f":"SUM(D57:D60)","v":386},30,{"$f":"SUM(F57:F60)","v":96},{"$f":"SUM(G57:G60)","v":0},{"$f":"SUM(H57:H60)","v":0},{"$f":"SUM(I57:I60)","v":0}]
["МДК. 02.01","Комплектование машинно-тракторного агрегата для выполнения сельскохозяйственных работ",278,206,"6+6",60]
["УП.02","Учебная практика",108,108]
["ПП.02","Производственная практика",108,72,null,36]
["ПМ.02.Э","Экзамен по модулю",18,null,"6+12"]
["ПМ.03","Техническое обслуживание и ремонт сельскохозяйственной техники ",{"$f":"SUM(C62:C66)","v":612},{"$f":"SUM(D62:D66)","v":540},24,48,0,0,0]
["МДК. 03.01","Система технического обслуживания и ремонта сельскохозяйственных машин и механизмов",120,96,"6+6",12]
["МДК. 03.02","Технологические процессы ремонтного производства",120,120]
["УП.03","Учебная практика",180,180]
["ПП.03","Производственная практика",180,144,null,36]
["ПМ.03.Э","Экзамен по модулю",12,null,"6+6"]
["ПМ.04","Освоение одной или нескольких профессий рабочих или должностей служащих",{"$f":"SUM(C68:C72)","v":414},{"$f":"SUM(D68:D72)","v":242},18,154,0,0,0]
["МДК. 04.01","Освоение профессии рабочих 19205 Тракторист-машинист сельскохозяйственного производства",94,94]
["МДК. 04.02","Освоение профессии рабочих 11442 Водитель автомобиля",230,76,null,154]
["УП.04","Учебная практика",36,36]
["ПП.04","Производственная практика",36,36]
["ПМ.04.ЭК","Квалификационный экзамен",18,null,"6+12"]
["ПДП","Преддипломная практика",144,72,null,72]
["ГИА","Государственная итоговая аттестация",216,216]
[null,null,{"$f":"C5+C22+C29+C32+C49+C74","v":5940},{"$f":"D5+D22+D29+D32+D49+D74","v":3036},{"$f":"E5+E22+E29+E32+E49","v":132},1276,20,1404,72]

{"sheet":"Сводные данные","index":2,"n_rows":12,"n_cols":8,"rows_kept":12,"merged":[[0,0,0,7],[2,0,5,0],[2,1,5,1],[2,2,2,3],[2,4,5,4],[2,5,5,5],[2,6,5,6],[2,7,5,7]]}
["Сводные  данные  по  бюджету  времени (в  неделях/часах)"]
[]
["Курсы","Обучение  по  дисциплинам  и  междисциплинарным  курсам (в том числе консультации)","Практика",null,"Промежуточная аттестация (экзамены)","Государственная итоговая аттестация","Всего (по курсам)","Каникулы"]
[null,null,"Учебная","Производ-ственная"]
[]
[null,null,"Учебная","Производ-ственная"]
[1,2,3,4,5,6,7,8]
["I  курс","40,3 / 1452","-","-","0,7 / 24","-","41 / 1476",11]
["II курс","34,7 / 1248","4 / 144"," 2 / 72","0,3 / 12","-","41 / 1476",11]
["III курс","28,8 / 1038","6 / 216","6 / 216","1,2 / 42","-","42 / 1512",10]
["IV курс","20,3 / 732","5 / 180","9 / 324","0,7 / 24","6 / 216","41 / 1476",2]
["Всего","124,1 / 4470","15 / 540","17 / 612","2,9 / 102","6 / 216","165 / 5940",34]

{"sheet":"Сводные данные (2)","index":3,"n_rows":12,"n_cols":9,"rows_kept":12,"merged":[[0,0,0,9],[2,0,5,0],[2,1,5,1],[2,2,3,2],[2,3,2,4],[2,5,5,5],[2,6,5,6],[2,7,5,7],[2,8,5,8]]}
["1. Сводные  данные  по  бюджету  времени (в  неделях)"]
[]
["Курсы","Обучение  по  дисциплинам  и  междисциплинарным  курсам ","Учебная практика","Производственная практика",null,"Промежуточная аттестация ","Государственная итоговая аттестация","Каникулы","Всего (по курсам)"]
[{"$nulls":3},"по профилю специальности","преддипломная"]
[]
[{"$nulls":3},"Учебная","Производ-ственная"]
[1,2,4,5,6,7,8,9,10]
["I  курс",41,0,0,0,0,0,11,{"$f":"SUM(B8:H8)","v":52}]
["II курс",35,4,2,0,0,0,11,{"$f":"SUM(B9:H9)","v":52}]
["III курс",30,6,6,0,0,0,10,52]
["IV курс",21,5,5,4,0,6,2,43]
["Всего",{"$f":"SUM(B8:B11)","v":127},{"$f":"SUM(C8:C11)","v":15},13,4,0,6,34,199]

{"sheet":"Перечень каб. лаб.","index":4,"n_rows":37,"n_cols":1,"rows_kept":37,"merged":[[0,0,0,9],[1,0,1,9],[3,0,3,9],[4,0,4,9],[5,0,5,9],[6,0,6,9],[7,0,7,9],[8,0,8,9],[9,0,9,9],[10,0,10,9],[11,0,11,9],[12,0,12,9],[13,0,13,9],[14,0,14,9],[15,0,15,9],[16,0,16,9],[17,0,17,9],[18,0,18,9],[19,0,19,9],[20,0,20,9],[21,0,21,9],[22,0,22,9],[23,0,23,9],[24,0,24,9],[25,0,25,9],[26,0,26,9],[27,0,27,9],[28,0,28,9],[29,0,29,9],[30,0,30,9],[31,0,31,9],[32,0,32,9],[33,0,33,9],[34,0,34,9],[35,0,35,9],[36,0,36,9]]}
["3. Перечень кабинетов, лабораторий и др. для подготовки по специальности среднего профессионального образования "]
["35.02.16 Эксплуатация и ремонт сельскохозяйственной техники и оборудования"]
[]
["Кабинеты:"]
["- социально-экономических дисциплин;"]
["- иностранного языка;"]
["- информационных технологий в профессиональной деятельности;"]
["- инженерной графики;"]
["- технической механики;"]
["- материаловедения;"]
["- управления транспортным средством и безопасности движения;"]
["- агрономии;"]
["- зоотехнии;"]
["- экологических основ природопользования;"]
["- безопасности жизнедеятельности и охраны труда."]
["Лаборатории:"]
["- электротехники и электроники;"]
["- метрологии, стандартизации и подтверждения качества;"]
["- гидравлики и теплотехники;"]
["- топлива и смазочных материалов;"]
["- тракторов и автомобилей;"]
["- сельскохозяйственных и мелиоративных машин"]
["- эксплуатации машинно-тракторного парка;"]
["- ремонта машин, оборудования и восстановления деталей;"]
["- технологии и механизации производства продукции растениеводства;"]
["- технологии и механизации производства продукции животноводства."]
["Мастерские: "]
["- слесарная мастерская;"]
["- сварочная мастерская;"]
["- пункт технического обслуживания и ремонта."]
["Тренажеры, тренажерные комплексы"]
["- тренажер для выработки навыков и совершенствования техники управления транспортным и мобильным энергетическим средством (в качестве тренажера может использоваться учебное транспортное средство)."]
["Спортивный комплекс"]
["Спортивный зал"]
["Залы:"]
["Библиотека, читальный зал с выходом в интернет"]
["Актовый зал"]

{"sheet":"Тит. лист","index":5,"n_rows":23,"n_cols":9,"rows_kept":23,"merged":[[1,0,1,13],[2,0,2,13],[3,0,3,13],[4,0,4,13],[5,0,5,13],[8,0,8,13],[9,0,9,13],[10,0,10,13],[11,0,11,13],[12,0,12,13],[13,0,13,13],[14,0,14,13],[15,0,15,13],[17,8,17,13],[18,8,18,13],[19,6,19,13],[20,6,20,13]]}
[{"$nulls":8},"                                                                                                                 Утверждаю"]
["                                                                                                                                                          Директор  ГАПОУ  “Атнинский            "]
["                                                                                                                          сельскохозяйственный   техникум"]
["                                                                                                        им. Габдуллы   Тукая”"]
["                                                                                                                             ____________ А.Ф. Каюмов"]
["                                                                                                                       «     »                                    2018 г."]
[]
[]
["УЧЕБНЫЙ ПЛАН"]
["основной образовательной программы"]
["среднего профессионального образования "]
["Государственного автономного профессионального образовательного  учреждения  "]
["“Атнинский сельскохозяйственный техникум им. Габдуллы Тукая”"]
["по специальности среднего профессионального образования "]
["35.02.16 Эксплуатация и ремонт сельскохозяйственной техники и оборудования"]
["по программе базовой подготовки"]
[]
[{"$nulls":8},"                                                  Квалификация:  техник-механик"]
[{"$nulls":8},"                                                   Форма обучения -  очная"]
[{"$nulls":6},"           Нормативный срок обучения – 3 года 10 мес."]
[{"$nulls":6},"       на базе  основного общего  образования."]
["                                                                                                         Профиль получаемого профессионального "]
["                                                                                                         образования  технический"]